[Event "FIDE-Online-Steinitz-Memorial-Women"]
[Site "Internet"]
[Date "2020.05.15"]
[Round "4"]
[White "Sebag, Marie"]
[Black "Tan, Zhongyi"]
[Result "1-0"]
[ECO "C67"]
[WhiteElo "2482"]
[BlackElo "2510"]
[Annotator "RC"]
[PlyCount "73"]
[EventDate "2020.05.15"]
[EventType "tourn"]
[SourceTitle "playchess.com"]
[Source "ChessBase"]
[SourceQuality "1"]
[TimeControl "180+2"]

1. e4 e5 2. Nf3 {[%emt 0:00:04]} Nc6 {[%emt 0:00:04]} 3. Bb5 {[%emt 0:00:01]} Nf6 {[%emt 0:00:02]} 4. O-O {[%emt 0:00:05]} Nxe4 {[%emt 0:00:02]} 5. Re1 {[%emt 0:00:01]} Nd6 {[%emt 0:00:01]} 6. Nxe5 {[%emt 0:00:02]} Be7 {[%emt 0:00:04]} 7. Bf1 {[%emt 0:00:03]} Nxe5 {[%emt 0:00:02]} 8. Rxe5 {[%emt 0:00:01]} O-O {[%emt 0:00:00]} 9. d4 {[%emt 0:00:01]} Bf6 {[%emt 0:00:03]} 10. Re1 {[%emt 0:00:02]} Re8 {[%emt 0:00:06]} 11. c3 {[%emt 0:00:13]} Rxe1 {[%emt 0:00:05]} 12. Qxe1 {[%emt 0:00:02]} Ne8 {[%emt 0:00:20]} 13. Bf4 {[%emt 0:00:04]} d5 {[%emt 0:00:02]} 14. Nd2 {[%emt 0:00:02]} c6 {[%emt 0:00:11]} 15. Bd3 {[%emt 0:00:02]} g6 {[%emt 0:00:02]} 16. Nf3 {[%emt 0:00:02]} Ng7 {[%emt 0:00:03]} 17. Qe2 {[%emt 0:00:06]} Bf5 {[%emt 0:00:02]} 18. Bxf5 {[%emt 0:00:01]} Nxf5 {[%emt 0:00:02]} 19. Re1 {[%emt 0:00:02]} Nd6 {[%emt 0:00:06]} 20. Ne5 {[%emt 0:00:11]} Bg7 {[%emt 0:00:28]} 21. h3 {[%emt 0:00:13]} Ne4 {[%emt 0:00:04]} 22. f3 {[%emt 0:00:24]} Nd6 {[%emt 0:00:02]} 23. Nd3 {[%emt 0:00:09]} Nf5 {[%emt 0:00:18]} 24. g4 {[%emt 0:00:08]} Nh4 {[%emt 0:00:10]} 25. Bg3 {[%emt 0:00:02]} Qf6 {[%emt 0:00:28]} 26. f4 {[%emt 0:00:06]} g5 {[%emt 0:00:03]} 27. Bxh4 {[%emt 0:00:14]} gxh4 {[%emt 0:00:02]} 28. Qe7 {[%emt 0:00:02]} Qg6 {[%emt 0:00:08]} 29. f5 {[%emt 0:00:12]} Qh6 {[%emt 0:00:01]} 30. Qxb7 {[%emt 0:00:10]} Rf8 {[%emt 0:00:09]} 31. Qe7 {[%emt 0:00:05]} Qd2 {[%emt 0:00:03]} 32. Qe3 {[%emt 0:00:09]} Qc2 {[%emt 0:00:03]} 33. Qe2 {[%emt 0:00:05]} Qa4 {[%emt 0:00:03]} 34. a3 {[%emt 0:00:06]} Bf6 {[%emt 0:00:06]} 35. Qd2 {[%emt 0:00:05]} Kh8 {[%emt 0:00:05]} 36. Nc5 {[%emt 0:00:04]} Qa5 {[%emt 0:00:25]} 37. Nd7 {[%emt 0:00:03]} 1-0

[Event "FIDE-Online-Steinitz-Memorial-Women"]
[Site "Internet"]
[Date "2020.05.15"]
[Round "6"]
[White "Abdumalik, Zhansaya"]
[Black "Khademalsharieh, Sarasadat"]
[Result "0-1"]
[ECO "C78"]
[WhiteElo "2409"]
[BlackElo "2431"]
[Annotator "ChessBase"]
[PlyCount "102"]
[EventDate "2020.05.15"]
[EventType "tourn"]
[SourceTitle "playchess.com"]
[Source "ChessBase"]
[SourceQuality "1"]
[TimeControl "180+2"]

1. e4 e5 2. Nf3 {[%emt 0:00:04]} Nc6 {[%emt 0:00:03]} 3. Bb5 {[%emt 0:00:00]} a6 {[%emt 0:00:02]} 4. Ba4 {[%emt 0:00:02]} Nf6 {[%emt 0:00:01]} 5. O-O {[%emt 0:00:01]} b5 {[%emt 0:00:00]} 6. Bb3 {[%emt 0:00:01]} Bc5 {[%emt 0:00:01]} 7. c3 {[%emt 0:00:01]} d6 {[%emt 0:00:02]} 8. d4 {[%emt 0:00:01]} Bb6 {[%emt 0:00:02]} 9. Be3 {[%emt 0:00:01]} Bg4 {[%emt 0:00:12]} 10. Nbd2 {[%emt 0:00:04]} exd4 {[%emt 0:00:05]} 11. cxd4 {[%emt 0:00:02]} Nxd4 {[%emt 0:00:09]} 12. Bxd4 {[%emt 0:00:02]} Bxd4 {[%emt 0:00:01]} 13. Bxf7+ {[%emt 0:00:08]} Kxf7 {[%emt 0:00:18]} 14. Qb3+ {[%emt 0:00:02]} d5 {[%emt 0:00:18]} 15. Nxd4 {[%emt 0:00:03]} c5 {[%emt 0:00:01]} 16. Nc6 {[%emt 0:00:21]} Qd6 {[%emt 0:00:06]} 17. exd5 {[%emt 0:00:02]} c4 {[%emt 0:00:27]} 18. Qg3 {[%emt 0:00:03]} Qxg3 {[%emt 0:00:22]} 19. hxg3 {[%emt 0:00:09]} Rhe8 {[%emt 0:00:02]} 20. f4 {[%emt 0:00:08]} Kg8 {[%emt 0:00:10]} 21. d6 {[%emt 0:00:18]} Re6 {[%emt 0:00:03]} 22. Ne5 {[%emt 0:00:19]} Rxd6 {[%emt 0:00:02]} 23. Ndf3 {[%emt 0:00:05]} Bf5 {[%emt 0:00:17]} 24. a4 {[%emt 0:00:02]} Rad8 {[%emt 0:00:02]} 25. axb5 {[%emt 0:00:03]} axb5 {[%emt 0:00:01]} 26. Ra5 {[%emt 0:00:03]} Ne4 {[%emt 0:00:06]} 27. Rxb5 {[%emt 0:00:10]} Nxg3 {[%emt 0:00:01]} 28. Re1 {[%emt 0:00:02]} Bd3 {[%emt 0:00:02]} 29. Kf2 {[%emt 0:00:07]} Ne4+ {[%emt 0:00:02]} 30. Ke3 {[%emt 0:00:01]} Nf6 {[%emt 0:00:05]} 31. g3 {[%emt 0:00:05]} c3 {[%emt 0:00:07]} 32. Rb7 {[%emt 0:00:11]} c2 {[%emt 0:00:09]} 33. Ng5 {[%emt 0:00:13]} Bf5 {[%emt 0:00:11]} 34. Ke2 {[%emt 0:00:29]} Rd1 {[%emt 0:00:02]} 35. Rc7 {[%emt 0:00:01]} R8d2+ {[%emt 0:00:02]} 36. Kf1 {[%emt 0:00:02]} Rxe1+ {[%emt 0:00:03]} 37. Kxe1 {[%emt 0:00:01]} Rd1+ {[%emt 0:00:01]} 38. Ke2 {[%emt 0:00:01]} c1=Q {[%emt 0:00:02]} 39. Rxc1 {[%emt 0:00:04]} Rxc1 {[%emt 0:00:01]} 40. Ngf3 {[%emt 0:00:04]} Rc2+ {[%emt 0:00:02]} 41. Ke3 {[%emt 0:00:01]} Rxb2 {[%emt 0:00:01]} 42. Nd4 {[%emt 0:00:01]} Bc8 {[%emt 0:00:05]} 43. f5 {[%emt 0:00:02]} Ra2 {[%emt 0:00:02]} 44. g4 {[%emt 0:00:02]} h6 {[%emt 0:00:01]} 45. Ndc6 {[%emt 0:00:04]} Ra3+ {[%emt 0:00:03]} 46. Kf4 {[%emt 0:00:04]} Bb7 {[%emt 0:00:02]} 47. Ne7+ {[%emt 0:00:02]} Kh7 {[%emt 0:00:01]} 48. N7g6 {[%emt 0:00:04]} Nd5+ {[%emt 0:00:02]} 49. Ke4 {[%emt 0:00:02]} Ne7+ {[%emt 0:00:02]} 50. Kf4 {[%emt 0:00:02]} Nxg6+ {[%emt 0:00:01]} 51. fxg6+ {[%emt 0:00:03]} Kg8 {[%emt 0:00:01]} 0-1

[Event "FIDE-Online-Steinitz-Memorial-Women"]
[Site "Internet"]
[Date "2020.05.16"]
[Round "9"]
[White "Paehtz, Elisabeth"]
[Black "Khademalsharieh, Sarasadat"]
[Result "0-1"]
[ECO "D00"]
[WhiteElo "2396"]
[BlackElo "2431"]
[Annotator "RC"]
[PlyCount "60"]
[EventDate "2020.05.15"]
[EventType "tourn"]
[SourceTitle "playchess.com"]
[Source "ChessBase"]
[SourceQuality "1"]
[TimeControl "180+2"]

1. d4 d5 2. Bf4 {[%emt 0:00:05]} Nf6 {[%emt 0:00:04]} 3. e3 {[%emt 0:00:01]} c5 {[%emt 0:00:02]} 4. c3 {[%emt 0:00:06]} Nc6 {[%emt 0:00:02]} 5. Nd2 {[%emt 0:00:02]} cxd4 {[%emt 0:00:04]} 6. exd4 {[%emt 0:00:02]} Bf5 {[%emt 0:00:01]} 7. Ngf3 {[%emt 0:00:02]} e6 {[%emt 0:00:01]} 8. Qb3 {[%emt 0:00:03]} Bd6 {[%emt 0:00:02]} 9. Bg3 {[%emt 0:00:03]} Bxg3 {[%emt 0:00:02]} 10. hxg3 {[%emt 0:00:02]} Qe7 {[%emt 0:00:01]} 11. Bb5 {[%emt 0:00:03]} O-O {[%emt 0:00:03]} 12. Bxc6 {[%emt 0:00:06]} bxc6 {[%emt 0:00:03]} 13. Qa4 {[%emt 0:00:02]} c5 {[%emt 0:00:15]} 14. Qa3 {[%emt 0:00:06]} Rfc8 {[%emt 0:00:09]} 15. Nb3 {[%emt 0:00:03]} Ne4 {[%emt 0:00:01]} 16. O-O {[%emt 0:00:14]} Qc7 {[%emt 0:00:05]} 17. Rfe1 {[%emt 0:00:24]} c4 {[%emt 0:00:03]} 18. Nbd2 {[%emt 0:00:02]} Nxd2 {[%emt 0:00:02]} 19. Nxd2 {[%emt 0:00:02]} h6 {[%emt 0:00:01]} 20. Nf3 {[%emt 0:00:06]} a5 {[%emt 0:00:04]} 21. Qa4 {[%emt 0:00:12]} Rab8 {[%emt 0:00:03]} 22. Re2 {[%emt 0:00:02]} Rb7 {[%emt 0:00:02]} 23. Ne5 {[%emt 0:00:21]} Rcb8 {[%emt 0:00:17]} 24. Rd1 {[%emt 0:00:14]} f6 {[%emt 0:00:20]} 25. g4 {[%emt 0:00:26]} Bh7 {[%emt 0:00:20]} 26. Nc6 {[%emt 0:00:08]} Qd7 {[%emt 0:00:04]} 27. Rde1 {[%emt 0:00:08]} Re8 {[%emt 0:00:45]} 28. b3 {[%emt 0:00:05]} Bd3 {[%emt 0:00:02]} 29. Rd2 {[%emt 0:00:05]} cxb3 {[%emt 0:00:16]} 30. axb3 {[%emt 0:00:04]} Bb5 {[%emt 0:00:02]} 0-1

[Event "FIDE-Online-Steinitz-Memorial-Women"]
[Site "Internet"]
[Date "2020.05.16"]
[Round "11"]
[White "Cori T., Deysi"]
[Black "Stefanova, Antoaneta"]
[Result "0-1"]
[ECO "A11"]
[WhiteElo "2391"]
[BlackElo "2485"]
[Annotator "ChessBase"]
[PlyCount "100"]
[EventDate "2020.05.15"]
[EventType "tourn"]
[SourceTitle "playchess.com"]
[Source "ChessBase"]
[SourceQuality "1"]
[TimeControl "180+2"]

1. d4 d5 2. c4 {[%emt 0:00:05]} c6 {[%emt 0:00:07]} 3. e3 {[%emt 0:00:01]} Nf6 {[%emt 0:00:05]} 4. Nc3 {[%emt 0:00:01]} g6 {[%emt 0:00:02]} 5. Nf3 {[%emt 0:00:06]} Bg7 {[%emt 0:00:01]} 6. b3 {[%emt 0:00:01]} O-O {[%emt 0:00:03]} 7. Bb2 {[%emt 0:00:01]} b6 {[%emt 0:00:02]} 8. Bd3 {[%emt 0:00:02]} Bb7 {[%emt 0:00:02]} 9. O-O {[%emt 0:00:01]} Nbd7 {[%emt 0:00:06]} 10. Rc1 {[%emt 0:00:02]} e6 {[%emt 0:00:04]} 11. Qe2 {[%emt 0:00:02]} c5 {[%emt 0:00:04]} 12. cxd5 {[%emt 0:00:03]} exd5 {[%emt 0:00:16]} 13. Rfd1 {[%emt 0:00:03]} Qe7 {[%emt 0:00:22]} 14. Bb5 {[%emt 0:00:10]} Rfd8 {[%emt 0:00:18]} 15. Na4 {[%emt 0:00:20]} Rac8 {[%emt 0:00:18]} 16. h3 {[%emt 0:00:12]} cxd4 {[%emt 0:00:08]} 17. Nxd4 {[%emt 0:00:05]} Nc5 {[%emt 0:00:04]} 18. Nf3 {[%emt 0:00:31]} h6 {[%emt 0:00:19]} 19. Nxc5 {[%emt 0:00:10]} bxc5 {[%emt 0:00:01]} 20. Ba6 {[%emt 0:00:05]} Ne4 {[%emt 0:00:12]} 21. Bxb7 {[%emt 0:00:03]} Qxb7 {[%emt 0:00:02]} 22. Bxg7 {[%emt 0:00:05]} Kxg7 {[%emt 0:00:00]} 23. Qb2+ {[%emt 0:00:02]} Kh7 {[%emt 0:00:09]} 24. Qe5 {[%emt 0:00:02]} Rc7 {[%emt 0:00:10]} 25. h4 {[%emt 0:00:03]} Re7 {[%emt 0:00:03]} 26. Qf4 {[%emt 0:00:02]} Kg7 {[%emt 0:00:15]} 27. Nh2 {[%emt 0:00:31]} Qb6 {[%emt 0:00:19]} 28. Ng4 {[%emt 0:00:07]} h5 {[%emt 0:00:03]} 29. Nh2 {[%emt 0:00:06]} a5 {[%emt 0:00:03]} 30. Nf3 {[%emt 0:00:04]} a4 {[%emt 0:00:02]} 31. bxa4 {[%emt 0:00:02]} c4 {[%emt 0:00:01]} 32. Nd4 {[%emt 0:00:03]} Ra8 {[%emt 0:00:03]} 33. f3 {[%emt 0:00:03]} Nf6 {[%emt 0:00:02]} 34. Qg5 {[%emt 0:00:01]} Kh7 {[%emt 0:00:01]} 35. Rb1 {[%emt 0:00:03]} Qd6 {[%emt 0:00:02]} 36. Kh1 {[%emt 0:00:14]} Rxa4 {[%emt 0:00:02]} 37. e4 {[%emt 0:00:04]} Qe5 {[%emt 0:00:03]} 38. Nc6 {[%emt 0:00:05]} Qxg5 {[%emt 0:00:02]} 39. hxg5 {[%emt 0:00:01]} Rc7 {[%emt 0:00:04]} 40. exd5 {[%emt 0:00:06]} Nxd5 {[%emt 0:00:03]} 41. Ne5 {[%emt 0:00:04]} Nc3 {[%emt 0:00:02]} 42. Rd8 {[%emt 0:00:18]} Nxb1 {[%emt 0:00:02]} 43. Nd7 {[%emt 0:00:02]} Rxd7 {[%emt 0:00:01]} 44. Rxd7 {[%emt 0:00:01]} c3 {[%emt 0:00:02]} 45. Rxf7+ {[%emt 0:00:01]} Kg8 {[%emt 0:00:01]} 46. Rc7 {[%emt 0:00:01]} Rxa2 {[%emt 0:00:02]} 47. Kh2 {[%emt 0:00:01]} c2 {[%emt 0:00:02]} 48. f4 {[%emt 0:00:02]} Nd2 {[%emt 0:00:02]} 49. f5 {[%emt 0:00:02]} gxf5 {[%emt 0:00:01]} 50. g6 {[%emt 0:00:01]} Nb3 {[%emt 0:00:02]} 0-1

[Event "FIDE-Online-Steinitz-Memorial-Women"]
[Site "Internet"]
[Date "2020.05.16"]
[Round "12"]
[White "Kosteniuk, Alexandra"]
[Black "Cori T., Deysi"]
[Result "1-0"]
[ECO "B01"]
[WhiteElo "2521"]
[BlackElo "2391"]
[Annotator "ChessBase"]
[PlyCount "53"]
[EventDate "2020.05.15"]
[EventType "tourn"]
[SourceTitle "playchess.com"]
[Source "ChessBase"]
[SourceQuality "1"]
[TimeControl "180+2"]

1. e4 d5 2. exd5 {[%emt 0:00:04]} Qxd5 {[%emt 0:00:03]} 3. Nc3 {[%emt 0:00:00]} Qd6 {[%emt 0:00:01]} 4. d4 {[%emt 0:00:01]} Nf6 {[%emt 0:00:01]} 5. Nf3 {[%emt 0:00:01]} a6 {[%emt 0:00:01]} 6. g3 {[%emt 0:00:01]} Bg4 {[%emt 0:00:03]} 7. Bg2 {[%emt 0:00:01]} Nc6 {[%emt 0:00:02]} 8. O-O {[%emt 0:00:34]} O-O-O {[%emt 0:00:02]} 9. h3 {[%emt 0:00:02]} Bh5 {[%emt 0:00:03]} 10. Bf4 {[%emt 0:00:05]} Qb4 {[%emt 0:00:01]} 11. a3 {[%emt 0:00:02]} Qxb2 {[%emt 0:00:05]} 12. Qe1 {[%emt 0:00:01]} Qxc2 {[%emt 0:00:33]} 13. Rc1 {[%emt 0:00:09]} Qf5 {[%emt 0:00:51]} 14. d5 {[%emt 0:00:36]} Nxd5 {[%emt 0:00:16]} 15. Nxd5 {[%emt 0:00:01]} Rxd5 {[%emt 0:00:03]} 16. Rxc6 {[%emt 0:00:40]} bxc6 {[%emt 0:00:09]} 17. Ne5 {[%emt 0:00:01]} e6 {[%emt 0:00:20]} 18. Bxd5 {[%emt 0:00:10]} cxd5 {[%emt 0:00:01]} 19. Qa5 {[%emt 0:00:01]} Be2 {[%emt 0:00:06]} 20. Re1 {[%emt 0:00:24]} g5 {[%emt 0:00:30]} 21. Rxe2 {[%emt 0:00:05]} gxf4 {[%emt 0:00:06]} 22. Qxa6+ {[%emt 0:00:03]} Kd8 {[%emt 0:00:01]} 23. Qc6 {[%emt 0:00:16]} Ke7 {[%emt 0:00:09]} 24. Qd7+ {[%emt 0:00:02]} Kf6 {[%emt 0:00:01]} 25. Qxf7+ {[%emt 0:00:01]} Kg5 {[%emt 0:00:01]} 26. Nf3+ {[%emt 0:00:04]} Kh6 {[%emt 0:00:06]} 27. Rxe6+ {[%emt 0:00:01]} 1-0

[Event "FIDE-Online-Steinitz-Memorial-Women"]
[Site "Internet"]
[Date "2020.05.16"]
[Round "12"]
[White "Sebag, Marie"]
[Black "Abdumalik, Zhansaya"]
[Result "0-1"]
[ECO "C88"]
[WhiteElo "2482"]
[BlackElo "2409"]
[Annotator "ChessBase"]
[PlyCount "48"]
[EventDate "2020.05.15"]
[EventType "tourn"]
[SourceTitle "playchess.com"]
[Source "ChessBase"]
[SourceQuality "1"]
[TimeControl "180+2"]

1. e4 e5 2. Nf3 {[%emt 0:00:05]} Nc6 {[%emt 0:00:03]} 3. Bb5 {[%emt 0:00:01]} a6 {[%emt 0:00:01]} 4. Ba4 {[%emt 0:00:01]} Nf6 {[%emt 0:00:01]} 5. O-O {[%emt 0:00:01]} Be7 {[%emt 0:00:01]} 6. Re1 {[%emt 0:00:03]} b5 {[%emt 0:00:01]} 7. Bb3 {[%emt 0:00:01]} O-O {[%emt 0:00:02]} 8. a4 {[%emt 0:00:01]} Bb7 {[%emt 0:00:01]} 9. d3 {[%emt 0:00:01]} d6 {[%emt 0:00:03]} 10. Nbd2 {[%emt 0:00:02]} Nd7 {[%emt 0:00:09]} 11. c3 {[%emt 0:00:04]} Nc5 {[%emt 0:00:03]} 12. Bc2 {[%emt 0:00:01]} Nxa4 {[%emt 0:00:16]} 13. Bxa4 {[%emt 0:00:02]} bxa4 {[%emt 0:00:01]} 14. Qxa4 {[%emt 0:00:02]} Rb8 {[%emt 0:00:09]} 15. Nf1 {[%emt 0:00:02]} f5 {[%emt 0:00:04]} 16. Ne3 {[%emt 0:00:08]} fxe4 {[%emt 0:00:13]} 17. dxe4 {[%emt 0:00:01]} Bf6 {[%emt 0:00:08]} 18. Qc4+ {[%emt 0:00:29]} Kh8 {[%emt 0:00:03]} 19. Nd5 {[%emt 0:00:01]} Qd7 {[%emt 0:00:10]} 20. h3 {[%emt 0:00:08]} Bd8 {[%emt 0:00:03]} 21. Nd2 {[%emt 0:00:42]} Ne7 {[%emt 0:00:05]} 22. Nxe7 {[%emt 0:00:05]} Qxe7 {[%emt 0:00:08]} 23. Nf1 {[%emt 0:00:04]} Qf7 {[%emt 0:00:20]} 24. Be3 {[%emt 0:00:04]} Qxc4 {[%emt 0:00:02]} 0-1

[Event "FIDE-Online-Steinitz-Memorial-Women"]
[Site "Internet"]
[Date "2020.05.17"]
[Round "15"]
[White "Khademalsharieh, Sarasadat"]
[Black "Abdumalik, Zhansaya"]
[Result "0-1"]
[ECO "E60"]
[WhiteElo "2431"]
[BlackElo "2409"]
[Annotator "RC"]
[PlyCount "74"]
[EventDate "2020.05.15"]
[EventType "tourn"]
[SourceTitle "playchess.com"]
[Source "ChessBase"]
[SourceQuality "1"]
[TimeControl "180+2"]

1. d4 Nf6 2. c4 {[%emt 0:00:04]} g6 {[%emt 0:00:04]} 3. g3 {[%emt 0:00:01]} Bg7 {[%emt 0:00:05]} 4. Bg2 {[%emt 0:00:02]} c5 {[%emt 0:00:02]} 5. dxc5 {[%emt 0:00:03]} Qa5+ {[%emt 0:00:06]} 6. Nc3 {[%emt 0:00:01]} Qxc5 {[%emt 0:00:02]} 7. Qa4 {[%emt 0:00:02]} O-O {[%emt 0:00:05]} 8. Be3 {[%emt 0:00:18]} Qc7 {[%emt 0:00:30]} 9. Nf3 {[%emt 0:00:13]} Nc6 {[%emt 0:00:04]} 10. O-O {[%emt 0:00:07]} d6 {[%emt 0:00:09]} 11. Rac1 {[%emt 0:00:04]} Bd7 {[%emt 0:00:04]} 12. Nd5 {[%emt 0:00:10]} Qd8 {[%emt 0:00:07]} 13. Qb3 {[%emt 0:00:11]} Rb8 {[%emt 0:00:18]} 14. h3 {[%emt 0:00:04]} e6 {[%emt 0:00:15]} 15. Nxf6+ {[%emt 0:00:09]} Qxf6 {[%emt 0:00:01]} 16. Rc2 {[%emt 0:00:10]} h6 {[%emt 0:00:11]} 17. Rd1 {[%emt 0:00:02]} e5 {[%emt 0:00:16]} 18. Rcd2 {[%emt 0:00:08]} Be6 {[%emt 0:00:03]} 19. Qc2 {[%emt 0:00:26]} Bf5 {[%emt 0:00:10]} 20. Qc1 {[%emt 0:00:03]} Rfd8 {[%emt 0:00:01]} 21. b3 {[%emt 0:00:01]} Rbc8 {[%emt 0:00:03]} 22. Qa3 {[%emt 0:00:02]} Bf8 {[%emt 0:00:02]} 23. Qc1 {[%emt 0:00:13]} b5 {[%emt 0:00:06]} 24. g4 {[%emt 0:00:05]} Be6 {[%emt 0:00:15]} 25. g5 {[%emt 0:00:20]} Qe7 {[%emt 0:00:02]} 26. gxh6 {[%emt 0:00:01]} bxc4 {[%emt 0:00:03]} 27. bxc4 {[%emt 0:00:01]} Na5 {[%emt 0:00:04]} 28. Ng5 {[%emt 0:00:09]} Nxc4 {[%emt 0:00:10]} 29. h7+ {[%emt 0:00:08]} Kh8 {[%emt 0:00:03]} 30. Nxe6 {[%emt 0:00:05]} Nxd2 {[%emt 0:00:04]} 31. Qxd2 {[%emt 0:00:15]} Qxe6 {[%emt 0:00:03]} 32. Bg5 {[%emt 0:00:04]} f6 {[%emt 0:00:10]} 33. Bh6 {[%emt 0:00:03]} Kxh7 {[%emt 0:00:04]} 34. Bxf8 {[%emt 0:00:02]} Rxf8 {[%emt 0:00:01]} 35. Kh2 {[%emt 0:00:02]} Rfd8 {[%emt 0:00:03]} 36. Bd5 {[%emt 0:00:01]} Qf5 {[%emt 0:00:02]} 37. e3 {[%emt 0:00:03]} Rc2 {[%emt 0:00:03]} 0-1

[Event "FIDE-Online-Steinitz-Memorial-Women"]
[Site "Internet"]
[Date "2020.05.17"]
[Round "15"]
[White "Paehtz, Elisabeth"]
[Black "Cori T., Deysi"]
[Result "0-1"]
[ECO "A47"]
[WhiteElo "2396"]
[BlackElo "2391"]
[Annotator "RC"]
[PlyCount "82"]
[EventDate "2020.05.15"]
[EventType "tourn"]
[SourceTitle "playchess.com"]
[Source "ChessBase"]
[SourceQuality "1"]
[TimeControl "180+2"]

1. d4 Nf6 2. Nf3 {[%emt 0:00:05]} e6 {[%emt 0:00:05]} 3. Bf4 {[%emt 0:00:01]} b6 {[%emt 0:00:05]} 4. e3 {[%emt 0:00:02]} Bb7 {[%emt 0:00:01]} 5. Bd3 {[%emt 0:00:08]} c5 {[%emt 0:00:05]} 6. c3 {[%emt 0:00:07]} Be7 {[%emt 0:00:11]} 7. Nbd2 {[%emt 0:00:02]} O-O {[%emt 0:00:03]} 8. h3 {[%emt 0:00:03]} h6 {[%emt 0:00:09]} 9. O-O {[%emt 0:00:02]} Nc6 {[%emt 0:00:05]} 10. Qe2 {[%emt 0:00:02]} Rc8 {[%emt 0:00:04]} 11. Bh2 {[%emt 0:00:03]} d6 {[%emt 0:00:08]} 12. a3 {[%emt 0:00:02]} Re8 {[%emt 0:00:02]} 13. Rfe1 {[%emt 0:00:03]} Bf8 {[%emt 0:00:02]} 14. e4 {[%emt 0:00:03]} cxd4 {[%emt 0:00:11]} 15. cxd4 {[%emt 0:00:01]} e5 {[%emt 0:00:28]} 16. d5 {[%emt 0:00:02]} Nd4 {[%emt 0:00:01]} 17. Nxd4 {[%emt 0:00:02]} exd4 {[%emt 0:00:00]} 18. Qd1 {[%emt 0:00:03]} Nd7 {[%emt 0:00:03]} 19. Bf1 {[%emt 0:00:13]} Qf6 {[%emt 0:00:07]} 20. Qa4 {[%emt 0:00:13]} Nc5 {[%emt 0:00:07]} 21. Qxa7 {[%emt 0:00:06]} Qd8 {[%emt 0:00:01]} 22. Nc4 {[%emt 0:00:08]} b5 {[%emt 0:00:23]} 23. Na5 {[%emt 0:00:14]} Re7 {[%emt 0:00:29]} 24. b4 {[%emt 0:00:29]} Ra8 {[%emt 0:00:07]} 25. Nxb7 {[%emt 0:00:03]} Rxb7 {[%emt 0:00:02]} 26. Qxa8 {[%emt 0:00:03]} Qxa8 {[%emt 0:00:01]} 27. bxc5 {[%emt 0:00:01]} dxc5 {[%emt 0:00:01]} 28. e5 {[%emt 0:00:15]} c4 {[%emt 0:00:04]} 29. g3 {[%emt 0:00:03]} d3 {[%emt 0:00:03]} 30. Bg2 {[%emt 0:00:02]} Qa5 {[%emt 0:00:07]} 31. d6 {[%emt 0:00:02]} Ra7 {[%emt 0:00:03]} 32. Bd5 {[%emt 0:00:07]} d2 {[%emt 0:00:03]} 33. Re2 {[%emt 0:00:07]} Qxa3 {[%emt 0:00:04]} 34. Rd1 {[%emt 0:00:06]} c3 {[%emt 0:00:01]} 35. Be4 {[%emt 0:00:21]} Qb3 {[%emt 0:00:05]} 36. Rdxd2 {[%emt 0:00:06]} cxd2 {[%emt 0:00:02]} 37. Rxd2 {[%emt 0:00:01]} Ra1+ {[%emt 0:00:02]} 38. Kg2 {[%emt 0:00:01]} Qc4 {[%emt 0:00:01]} 39. Bd3 {[%emt 0:00:04]} Qd5+ {[%emt 0:00:03]} 40. f3 {[%emt 0:00:01]} Qxe5 {[%emt 0:00:07]} 41. g4 {[%emt 0:00:02]} Qe3 {[%emt 0:00:01]} 0-1

[Event "FIDE-Online-Steinitz-Memorial-Women"]
[Site "Internet"]
[Date "2020.05.17"]
[Round "16"]
[White "Sebag, Marie"]
[Black "Paehtz, Elisabeth"]
[Result "1-0"]
[ECO "B51"]
[WhiteElo "2482"]
[BlackElo "2396"]
[Annotator "RC"]
[PlyCount "103"]
[EventDate "2020.05.15"]
[EventType "tourn"]
[SourceTitle "playchess.com"]
[Source "ChessBase"]
[SourceQuality "1"]
[TimeControl "180+2"]

1. e4 c5 2. Nf3 {[%emt 0:00:04]} d6 {[%emt 0:00:03]} 3. Bb5+ {[%emt 0:00:02]} Nd7 {[%emt 0:00:03]} 4. O-O {[%emt 0:00:01]} a6 {[%emt 0:00:01]} 5. Bd3 {[%emt 0:00:01]} Ngf6 {[%emt 0:00:02]} 6. c3 {[%emt 0:00:08]} Ne5 {[%emt 0:00:02]} 7. Be2 {[%emt 0:00:14]} Nxf3+ {[%emt 0:00:03]} 8. Bxf3 {[%emt 0:00:02]} g6 {[%emt 0:00:03]} 9. d4 {[%emt 0:00:01]} Bg7 {[%emt 0:00:02]} 10. dxc5 {[%emt 0:00:07]} dxc5 {[%emt 0:00:01]} 11. Qxd8+ {[%emt 0:00:02]} Kxd8 {[%emt 0:00:00]} 12. Rd1+ {[%emt 0:00:02]} Nd7 {[%emt 0:00:02]} 13. Be3 {[%emt 0:00:02]} Kc7 {[%emt 0:00:02]} 14. Nd2 {[%emt 0:00:02]} b6 {[%emt 0:00:13]} 15. a4 {[%emt 0:00:10]} Bb7 {[%emt 0:00:03]} 16. Be2 {[%emt 0:00:03]} Rhd8 {[%emt 0:00:12]} 17. f3 {[%emt 0:00:05]} Ne5 {[%emt 0:00:02]} 18. a5 {[%emt 0:00:05]} Nd3 {[%emt 0:00:20]} 19. axb6+ {[%emt 0:00:04]} Kc6 {[%emt 0:00:04]} 20. Nc4 {[%emt 0:00:13]} Ne5 {[%emt 0:00:02]} 21. Rxd8 {[%emt 0:00:07]} Rxd8 {[%emt 0:00:05]} 22. Na5+ {[%emt 0:00:03]} Kxb6 {[%emt 0:00:01]} 23. Nxb7 {[%emt 0:00:01]} Kxb7 {[%emt 0:00:01]} 24. Bxa6+ {[%emt 0:00:10]} Kc6 {[%emt 0:00:02]} 25. Be2 {[%emt 0:00:08]} Nd3 {[%emt 0:00:02]} 26. Rd1 {[%emt 0:00:11]} c4 {[%emt 0:00:04]} 27. Kf1 {[%emt 0:00:34]} Rd6 {[%emt 0:00:04]} 28. Bxd3 {[%emt 0:00:02]} cxd3 {[%emt 0:00:01]} 29. Ke1 {[%emt 0:00:03]} f5 {[%emt 0:00:02]} 30. Kd2 {[%emt 0:00:04]} fxe4 {[%emt 0:00:03]} 31. fxe4 {[%emt 0:00:01]} Be5 {[%emt 0:00:00]} 32. g3 {[%emt 0:00:05]} Kb5 {[%emt 0:00:04]} 33. b3 {[%emt 0:00:23]} Rc6 {[%emt 0:00:02]} 34. Bd4 {[%emt 0:00:16]} Bxd4 {[%emt 0:00:02]} 35. cxd4 {[%emt 0:00:01]} Kb4 {[%emt 0:00:01]} 36. Kxd3 {[%emt 0:00:03]} Rc3+ {[%emt 0:00:07]} 37. Ke2 {[%emt 0:00:01]} Rxb3 {[%emt 0:00:06]} 38. Rc1 {[%emt 0:00:04]} Rb2+ {[%emt 0:00:02]} 39. Ke3 {[%emt 0:00:02]} Rxh2 {[%emt 0:00:04]} 40. Rc7 {[%emt 0:00:01]} Rg2 {[%emt 0:00:08]} 41. Kf3 {[%emt 0:00:04]} Rd2 {[%emt 0:00:02]} 42. d5 {[%emt 0:00:01]} Rd3+ {[%emt 0:00:08]} 43. Kf4 {[%emt 0:00:02]} g5+ {[%emt 0:00:10]} 44. Kxg5 {[%emt 0:00:03]} Rxg3+ {[%emt 0:00:02]} 45. Kf4 {[%emt 0:00:02]} Rg7 {[%emt 0:00:03]} 46. d6 {[%emt 0:00:01]} Rf7+ {[%emt 0:00:04]} 47. Kg5 {[%emt 0:00:06]} Rg7+ {[%emt 0:00:04]} 48. Kh5 {[%emt 0:00:05]} Rg6 {[%emt 0:00:05]} 49. dxe7 {[%emt 0:00:09]} Re6 {[%emt 0:00:02]} 50. Kg5 {[%emt 0:00:00]} Rxe4 {[%emt 0:00:08]} 51. Kf6 {[%emt 0:00:01]} h5 {[%emt 0:00:02]} 52. Rc8 {[%emt 0:00:03]} 1-0